bitfinex-derivatives/quotes_ETHF0:USTF0_20260312
["timestamp","ask_amount","ask_price","bid_price","bid_amount"]
[1773354876178,1.28173129,2063.8,2063.0,0.02727794]
[1773354876980,1.52437129,2063.8,2063.0,0.02727794]
[1773354877385,1.52406129,2063.8,2063.0,1.3692158]
[1773354877872,1.52689129,2063.8,2063.0,0.02727794]
[1773354878181,1.28173129,2063.8,2063.0,0.02727794]
[1773354878381,1.28173129,2063.8,2063.0,1.3692158]
[1773354879284,1.52714129,2063.8,2063.0,0.02727794]
[1773354881484,1.76938129,2063.8,2063.0,0.00527794]
[1773354881780,1.76938129,2063.8,2062.5,2.08444892]
[1773354881781,1.28173129,2062.8,2062.4,1.36393786]
[1773354882378,1.53435129,2062.8,2062.4,1.36393786]
[1773354882578,1.53435129,2062.8,2062.4,1.36758594]
[1773354882783,1.28173129,2062.8,2062.4,1.36758594]
[1773354885489,1.28173129,2062.8,2062.4,0.02564808]
[1773354886185,1.28173129,2062.8,2062.3,0.83603778]
[1773354886392,1.28173129,2062.8,2062.2,0.022]
[1773354886893,1.28173129,2062.8,2062.0,0.022]
[1773354886894,1.23019313,2062.6,2062.0,0.022]
[1773354887187,1.23019313,2062.5,2062.0,0.022]
[1773354887391,1.23019313,2062.5,2061.8,1.26123393]
[1773354889396,1.23019313,2062.5,2061.8,0.022]
[1773354889587,1.23019313,2062.2,2061.8,0.022]
[1773354891295,1.23019313,2062.2,2061.7,1.23923393]
[1773354892786,1.28684434,2061.8,2061.4,0.022]
[1773354892995,2.09077472,2061.9,2061.0,1.30293811]
[1773354892996,1.28684434,2061.6,2061.0,1.30293811]
[1773354893198,1.28684434,2061.6,2061.1,2.09077472]
[1773354893497,1.28684434,2061.9,2061.4,1.28093811]
[1773354893894,1.28684434,2061.8,2061.2,1.28093811]
[1773354894090,1.28684434,2061.8,2061.1,3.37171283]
[1773354894692,1.28684434,2061.8,2061.2,1.28093811]
[1773354898399,1.28684434,2061.8,2061.4,1.28093811]
[1773354900305,1.28684434,2061.9,2061.4,1.28093811]
[1773354901803,1.28684434,2061.9,2061.3,2.09077472]
[1773354902011,1.28684434,2061.9,2061.2,1.28093811]
[1773354904408,1.28684434,2061.9,2061.4,1.28093811]
[1773354908718,1.28684434,2062.2,2061.8,1.28093811]
[1773354911116,1.28684434,2062.4,2062.0,1.28093811]
[1773354911719,1.28684434,2062.4,2061.8,1.28093811]
[1773354915025,1.28684434,2062.4,2062.0,1.28093811]
[1773354917313,1.28684434,2062.4,2061.8,1.28093811]
[1773354918123,1.28684434,2062.3,2061.6,1.28093811]
[1773354923430,1.28684434,2062.3,2061.8,1.12115815]
[1773354923631,1.28684434,2062.3,2062.0,1.12115815]
[1773354925325,1.11172105,2062.5,2062.0,1.12115815]
[1773354925530,1.11662251,2062.6,2062.3,1.12115815]
[1773354925828,1.02405415,2062.6,2062.3,1.00864741]
[1773354926629,1.0275335,2062.6,2062.3,0.00430301]
[1773354928728,1.0275335,2062.6,2062.3,1.12546116]
[1773354928936,1.0275335,2062.6,2062.3,0.44857201]
[1773354929130,1.0275335,2062.6,2062.1,0.89505338]
[1773354932133,1.0275335,2062.6,2061.8,0.95484697]
[1773354932831,1.0275335,2062.6,2062.1,0.94405819]
[1773354933431,1.0275335,2062.6,2061.9,0.93421712]
[1773354934532,1.0275335,2062.6,2061.9,3.02499184]
[1773354934734,1.0275335,2062.6,2062.0,0.92512255]
[1773354937434,1.0275335,2062.6,2062.2,0.89834707]
[1773354937628,0.00347935,2062.6,2062.2,0.89834707]
[1773354938028,1.1152004,2062.6,2062.2,0.89834707]
[1773354938734,1.1152004,2062.6,2062.1,2.98024102]
[1773354939436,1.1152004,2062.6,2062.2,0.8810282]
[1773354945040,1.1152004,2062.6,2062.3,2.92452898]
[1773354945238,1.11150609,2062.8,2062.4,0.83375426]
[1773354946239,1.11499298,2062.8,2062.4,0.83783206]
[1773354946440,1.11499298,2062.8,2062.4,0.0040778]
[1773354948843,1.11499298,2062.8,2062.4,0.81370939]
[1773354951342,1.11499298,2062.8,2062.4,0.0040778]
[1773354953640,0.99165226,2062.7,2062.4,0.0040778]
[1773354960243,0.99165226,2062.7,2062.4,0.71423668]
[1773354960648,10.42413915,2062.8,2062.4,0.71423668]
[1773354960947,0.99165226,2062.7,2062.4,0.71423668]
[1773354961954,0.99165226,2062.7,2062.4,0.0040778]
[1773354966253,0.99165226,2062.7,2062.4,0.67422158]
[1773354969056,0.99513915,2062.8,2062.4,0.67422158]
[1773354969257,4.28138752,2063.2,2062.4,0.67422158]
[1773354969258,0.99165226,2062.9,2062.4,0.67422158]
[1773354970251,0.99749348,2062.9,2062.4,0.67422158]
[1773354973763,0.99749348,2062.9,2062.4,0.0040778]
[1773354973964,0.34658411,2062.5,2062.0,2.52516257]
[1773354974255,9.463,2062.4,2061.7,1.04493028]
[1773354974456,0.30110835,2062.3,2061.7,1.04493028]
[1773354974858,0.30110835,2062.3,2061.7,1.04841717]
[1773354975961,0.30110835,2062.3,2061.7,0.00348689]
[1773354983470,0.85146748,2062.2,2061.7,0.00348689]
[1773354983770,0.85387222,2062.0,2061.7,0.00348689]
[1773354983968,0.85387222,2062.0,2061.5,1.04493028]
[1773354983969,0.60623533,2061.7,2061.2,1.19525268]
[1773354984168,0.60623533,2061.7,2061.1,1.19525268]
[1773354984469,0.63147971,2061.5,2061.1,1.19525268]
[1773354984669,0.63147971,2061.5,2060.8,1.21725268]
[1773354984869,0.63147971,2061.5,2060.9,1.19525268]
[1773354985072,0.63147971,2061.5,2061.0,1.21725268]
[1773354986470,0.63147971,2061.5,2061.0,0.022]
[1773354988169,2.33160201,2061.8,2061.0,0.022]
[1773354988170,0.24247,2061.8,2061.0,1.21725268]
[1773354988363,10.23617417,2061.8,2061.2,1.19525268]
[1773354988567,9.496,2062.1,2061.4,1.19525268]
[1773354988871,10.23717417,2062.1,2061.4,1.19525268]
[1773354989070,0.73393548,2062.0,2061.4,1.19525268]
[1773354990170,0.73393548,2062.0,2061.1,2.08913201]
[1773354990171,0.73393548,2062.0,2061.1,1.19525268]
[1773354993367,0.73393548,2062.0,2061.0,1.21725268]
[1773354994778,0.85753866,2061.8,2061.0,1.21725268]
[1773354998685,0.93998442,2061.7,2061.0,1.21725268]
[1773354998877,0.24249,2061.6,2061.0,0.022]
[1773354999082,0.94211626,2061.5,2061.0,0.022]
[1773355000482,0.94211626,2061.5,2061.0,1.21725268]
[1773355006882,1.13002362,2061.6,2061.0,1.21725268]
[1773355007574,1.14782208,2061.5,2061.0,1.21725268]
[1773355007984,1.12582208,2061.5,2061.3,0.022]
[1773355012180,1.12582208,2061.5,2061.2,1.50205707]
[1773355017691,10.80935178,2061.6,2061.2,1.50205707]
[1773355017989,9.512,2061.5,2061.2,1.50205707]
[1773355018491,10.84008427,2061.5,2061.2,1.50205707]
[1773355018787,2.09204629,2061.7,2061.2,1.50205707]
[1773355018988,9.516,2061.7,2061.3,1.5132759]
[1773355019483,1.34369151,2061.6,2061.1,1.5352759]
[1773355022787,1.40654787,2061.8,2061.1,1.5352759]
[1773355022992,9.528,2061.7,2061.1,1.5352759]
[1773355024286,1.40654787,2061.8,2061.1,1.5352759]
[1773355024888,1.43562431,2061.7,2061.1,1.5352759]
[1773355025791,1.4498141,2061.6,2061.1,1.5352759]
[1773355025990,1.4498141,2061.5,2061.1,1.5352759]
[1773355029795,1.45370756,2061.4,2061.1,0.022]
[1773355029996,1.45739637,2061.4,2061.1,0.022]
[1773355030494,1.45739637,2061.4,2061.1,1.5352759]
[1773355030690,1.45370756,2061.7,2061.1,1.5352759]
[1773355030894,9.552,2061.7,2061.4,1.5132759]
[1773355031297,11.00570756,2061.7,2061.4,1.5132759]
[1773355031496,11.00570756,2061.7,2061.2,1.5132759]
[1773355031698,11.01129779,2061.7,2061.2,1.51696471]
[1773355032601,1.45929779,2061.7,2061.2,1.51696471]
[1773355032799,11.01729779,2061.7,2061.2,1.51696471]
[1773355034303,11.01729779,2061.7,2061.4,1.5132759]
[1773355034304,0.00559023,2061.7,2061.4,1.5132759]
[1773355034509,9.562,2061.8,2061.4,1.5132759]
[1773355034799,11.01570756,2061.8,2061.4,1.5132759]
[1773355035408,11.00459307,2061.8,2061.4,1.5132759]
[1773355037404,11.00459307,2061.8,2061.2,0.00368881]
[1773355037405,0.00529537,2061.8,2061.5,2.09204629]
[1773355037596,0.00529537,2061.8,2061.6,1.5132759]
[1773355038302,9.574,2062.0,2061.6,1.5132759]
[1773355038808,11.02770756,2062.0,2061.6,1.5132759]
[1773355039102,1.30801969,2062.4,2062.0,1.5132759]
[1773355039302,1.31360554,2062.4,2062.0,1.5132759]
[1773355039503,1.31360554,2062.4,2061.7,2.09204629]
[1773355039504,0.00558585,2062.4,2062.2,1.5132759]
[1773355039699,1.34417934,2062.8,2062.4,1.5132759]
[1773355039908,1.3469713,2062.9,2062.4,1.5132759]
[1773355040607,1.35209808,2062.9,2062.4,1.5132759]
[1773355041211,0.00512678,2062.9,2062.6,1.73132335]
[1773355041613,1.39412901,2062.9,2062.4,1.73132335]
[1773355043316,1.41019531,2062.6,2062.0,1.73132335]
[1773355043512,1.41940468,2062.5,2062.0,1.73132335]
[1773355043717,1.41940468,2062.5,2061.8,0.24142883]
[1773355043718,1.41940468,2062.4,2061.8,1.73132335]
[1773355044513,1.41940468,2062.4,2061.9,2.09204629]
[1773355044715,9.591,2062.7,2062.4,1.73132335]
[1773355045011,9.591,2062.7,2062.3,2.09204629]
[1773355045012,11.0263366,2062.9,2062.5,1.73132335]
[1773355045716,1.44347834,2062.8,2062.5,1.73132335]
[1773355046316,9.59712678,2062.9,2062.5,1.73132335]
[1773355046516,9.59712678,2062.9,2062.6,1.73132335]
[1773355046817,11.04867672,2062.9,2062.6,1.73132335]
[1773355047912,1.46086275,2063.0,2062.7,1.73132335]
[1773355048218,2.09204629,2063.5,2062.9,1.73132335]
[1773355048219,1.46086275,2063.5,2062.9,1.73132335]
[1773355048419,11.70667004,2063.7,2063.2,1.73132335]
[1773355048614,11.70667004,2063.7,2063.4,1.73132335]
[1773355048615,0.638,2063.7,2063.4,1.73132335]
[1773355049017,0.638,2063.7,2063.4,1.73648601]
[1773355049018,0.64311808,2063.7,2063.4,1.73648601]
[1773355050115,1.48543775,2063.6,2063.2,1.73132335]
[1773355050309,1.48543775,2063.6,2062.8,1.73132335]
[1773355051323,1.48543775,2063.6,2062.8,1.73584336]
[1773355053923,10.24811808,2063.7,2062.2,1.73132335]
[1773355053924,1.5752134,2063.4,2062.2,1.73132335]
[1773355054124,1.57069339,2063.2,2062.2,1.73132335]
[1773355054320,1.57069339,2063.0,2062.2,1.73132335]
[1773355054919,1.57069339,2063.0,2062.2,1.73570193]
[1773355078137,1.57069339,2063.0,2062.2,1.97280413]
[1773355080935,4.0676773,2063.4,2062.2,1.97280413]
[1773355080936,1.80029849,2063.1,2062.2,1.97280413]
[1773355081137,1.80029849,2063.4,2062.4,1.77281841]
[1773355083139,1.80029849,2063.4,2062.5,1.77281841]
[1773355084142,1.8092038,2063.3,2062.5,1.77281841]
[1773355085538,5.88118058,2063.5,2062.5,1.77281841]
[1773355085744,1.81350328,2063.4,2062.5,1.77281841]
[1773355086835,1.81350328,2063.4,2062.6,1.77281841]
[1773355087540,1.8038618,2063.6,2062.6,1.77281841]
[1773355087843,1.8038618,2063.6,2062.8,1.77281841]
[1773355088039,1.8038618,2063.6,2062.9,1.77281841]
[1773355088245,0.64311808,2063.7,2062.9,1.77281841]
[1773355088741,2.45111244,2063.7,2062.9,1.77281841]
[1773355090347,1.79992184,2063.6,2062.9,1.77281841]
[1773355095044,1.79992184,2063.6,2062.9,2.01577722]
[1773355100754,0.64311808,2063.7,2063.0,1.82813208]
[1773355101051,0.594,2063.9,2063.4,1.82813208]
[1773355101052,2.36091075,2063.9,2063.4,1.82813208]
[1773355101254,1.76691075,2063.9,2063.4,1.82813208]
[1773355101449,1.74491075,2063.9,2063.7,0.022]
[1773355102055,1.75066788,2063.9,2063.7,0.0268039]
[1773355103246,1.75066788,2063.9,2063.4,1.82813208]
[1773355103451,1.80288593,2063.7,2063.3,1.85013208]
[1773355103753,0.066,2063.8,2063.3,1.85013208]
[1773355103953,1.86919028,2063.8,2063.3,1.85013208]
[1773355104353,1.86919028,2063.8,2063.3,1.85404381]
[1773355104762,1.86919028,2063.8,2063.3,0.02591173]
[1773355104966,1.86919028,2063.8,2063.1,1.85013208]
[1773355104967,1.7865522,2063.6,2063.2,1.82813208]
[1773355105959,1.7865522,2063.6,2063.2,1.83382134]
[1773355110458,11.37660092,2064.3,2063.5,1.82813208]
[1773355110661,1.83160092,2064.3,2063.5,1.82813208]
[1773355110956,1.80960092,2064.3,2064.1,0.022]
[1773355111560,1.81363905,2064.3,2064.1,0.022]
[1773355114561,2.04508,2064.1,2063.9,0.022]
[1773355117166,2.04508,2064.1,2063.7,1.85013208]
[1773355117369,0.066,2064.2,2063.3,7.95354535]
[1773355117370,1.8345166,2063.9,2063.3,7.95354535]
[1773355117664,1.8345166,2063.9,2063.3,0.022]
[1773355117865,2.0821966,2063.9,2063.3,0.022]
[1773355118061,0.088,2064.1,2063.4,1.82813208]
[1773355118268,1.90359999,2064.1,2063.4,1.82813208]
[1773355121271,0.088,2064.1,2063.4,1.82813208]
[1773355125276,1.88970089,2064.1,2063.4,1.82813208]
[1773355127778,1.88970089,2064.1,2063.4,2.06674347]
[1773355129282,1.88970089,2064.1,2063.4,1.82813208]
[1773355129480,0.24227,2063.5,2063.2,9.26e-06]
[1773355129783,0.24227,2063.5,2062.9,0.022]
[1773355129983,0.24227,2063.5,2062.7,0.022]
[1773355130484,0.00816783,2063.4,2062.7,0.022]
[1773355130678,0.00816783,2063.4,2062.7,0.02713915]
[1773355131779,0.25089783,2063.4,2062.7,0.02713915]
[1773355131984,0.70390459,2063.2,2062.7,0.02713915]
[1773355132186,0.70545459,2063.1,2062.7,0.02713915]
[1773355132385,0.58494638,2062.9,2062.6,1.91364888]
[1773355133085,0.40372536,2063.4,2062.6,1.91364888]
[1773355133285,0.40372536,2063.3,2062.6,1.91920767]
[1773355133484,0.40282731,2063.0,2062.6,1.91920767]
[1773355133684,0.64729731,2063.0,2062.6,1.91920767]
[1773355133880,0.40282731,2063.0,2062.6,1.91920767]
[1773355134888,0.40282731,2063.0,2062.6,0.00555879]
[1773355135187,0.40282731,2063.0,2062.6,2.06816337]
[1773355135387,0.40282731,2063.0,2062.6,0.00555879]
[1773355136384,0.39945389,2062.8,2062.5,0.022]
[1773355136580,0.39945389,2062.8,2062.3,2.08461612]
[1773355136786,0.3936716,2063.1,2062.3,2.08461612]
[1773355137388,0.3936716,2062.9,2062.3,2.08461612]
[1773355137587,0.39849046,2062.9,2062.3,2.08599287]
[1773355148599,0.00481886,2062.9,2062.3,2.08599287]
[1773355153002,0.00481886,2062.9,2062.3,2.08599287]
[1773355155906,0.5024726,2062.9,2062.3,2.08599287]
[1773355156608,0.00481886,2062.9,2062.3,2.08599287]
[1773355157002,0.51126066,2062.9,2062.3,2.08599287]
[1773355157694,0.00481886,2062.9,2062.3,2.08599287]
[1773355159006,2.61137147,2062.9,2062.3,2.08599287]
[1773355159307,0.51735871,2062.6,2062.3,0.02337675]
[1773355159508,0.51735871,2062.6,2062.2,2.01146701]
[1773355163201,4.07249616,2062.9,2062.3,2.20875733]
[1773355163402,2.21057047,2063.0,2062.6,2.20875733]
[1773355163605,7.92844404,2062.9,2062.4,2.20875733]
[1773355163805,2.21057047,2062.9,2062.4,2.20875733]
[1773355164012,2.21057047,2063.1,2062.4,2.20875733]
[1773355164211,7.92836833,2063.0,2062.4,2.20875733]
[1773355164513,5.71779786,2062.9,2062.4,2.21357619]
[1773355167109,7.92836833,2062.9,2062.4,2.21357619]
[1773355167312,2.21057047,2062.9,2062.4,2.21357619]
[1773355169216,2.21401648,2063.0,2062.4,2.21357619]
[1773355169410,7.9295504,2062.9,2062.4,2.21357619]
[1773355169605,2.21057047,2062.9,2062.4,2.21357619]
[1773355171719,2.21401648,2063.0,2062.4,2.21357619]
[1773355171917,5.7097723,2062.9,2062.4,2.21357619]
[1773355172219,7.92034277,2062.9,2062.4,2.21357619]
[1773355172418,0.00344601,2063.0,2062.6,2.20875733]
[1773355172621,6.52024777,2063.4,2062.8,2.20875733]
[1773355172818,2.21057047,2063.3,2062.8,2.20875733]
[1773355173120,2.21057047,2063.1,2062.5,2.20875733]
[1773355173620,2.21428976,2063.1,2062.5,2.20875733]
[1773355174715,2.45257047,2063.4,2062.9,2.20875733]
[1773355175419,0.242,2063.4,2063.1,2.20875733]
[1773355175614,0.242,2063.4,2063.1,2.02712909]
[1773355175825,0.24621931,2063.4,2063.1,2.02712909]
[1773355176422,0.24621931,2063.4,2063.1,1.84562614]
[1773355176624,2.21057047,2063.7,2063.3,2.20875733]
[1773355177016,2.18857047,2063.7,2063.3,2.23075733]
[1773355177720,2.21057047,2063.9,2063.3,2.23075733]
[1773355177923,0.24217,2064.4,2063.7,2.20875733]
[1773355177924,2.21057047,2064.2,2063.7,2.20875733]
[1773355178220,2.18857047,2064.2,2064.0,0.022]
[1773355178423,2.18857047,2064.2,2063.9,2.04461836]
[1773355178723,2.18857047,2064.2,2063.8,2.23075733]
[1773355178919,2.23257047,2064.2,2063.8,2.23470613]
[1773355179119,2.23820193,2064.2,2063.8,2.23470613]
[1773355180324,2.23820193,2064.2,2063.8,0.0259488]
[1773355180722,2.21057047,2063.8,2063.4,2.23075733]
[1773355181833,2.21057047,2063.8,2063.4,2.23696007]
[1773355185826,2.21057047,2063.8,2063.2,2.43479209]
[1773355186725,2.40790756,2063.9,2063.4,2.41279209]
[1773355187025,2.40790756,2063.9,2063.4,2.41903831]
[1773355190525,2.3586304,2063.8,2063.4,2.41903831]
[1773355195430,2.3586304,2063.4,2062.6,2.53044985]
[1773355195631,6.06879,2063.9,2062.4,7.56738663]
[1773355195632,2.3586304,2062.9,2062.4,2.53044985]
[1773355195827,2.3586304,2062.9,2062.4,0.022]
[1773355196633,2.3586304,2062.9,2062.4,0.02534507]
[1773355197031,2.3586304,2062.9,2062.4,2.53379492]
[1773355197837,2.3586304,2063.1,2062.4,2.53379492]
[1773355198136,2.3586304,2062.9,2062.4,2.53379492]
[1773355199038,2.3586304,2062.9,2062.2,2.53044985]
[1773355199334,2.3586304,2062.8,2062.2,2.53044985]
[1773355201435,2.3586304,2062.8,2062.2,0.022]
[1773355201832,2.6014404,2062.8,2062.2,0.022]
[1773355202735,2.8437904,2062.8,2062.0,0.022]
[1773355202937,2.6009804,2062.8,2061.8,0.022]
[1773355203339,2.8622904,2062.8,2061.8,0.022]
[1773355203631,2.8622904,2062.8,2061.8,2.53044985]
[1773355204235,2.6288404,2062.6,2061.8,2.53044985]
[1773355204437,2.6296304,2062.4,2061.8,2.53044985]
[1773355205935,2.6044604,2061.8,2061.4,2.53044985]
[1773355207237,2.3586304,2061.8,2061.2,0.022]
[1773355208040,2.6202804,2061.8,2061.2,0.022]
[1773355211944,2.3586304,2061.6,2060.6,0.022]
[1773355212135,2.3586304,2061.6,2060.6,2.53044985]
[1773355212445,2.6348404,2061.6,2060.6,2.53044985]
[1773355213646,2.3586304,2061.4,2060.6,2.53044985]
[1773355213939,2.3586304,2061.9,2060.6,2.53044985]
[1773355214146,2.3586304,2061.7,2060.6,2.77304985]
[1773355214846,11.8606304,2061.8,2060.6,2.77304985]
[1773355215243,2.3586304,2061.7,2060.6,2.77304985]
[1773355215644,2.3586304,2061.9,2060.6,2.77304985]
[1773355215946,2.3586304,2062.0,2060.6,2.77304985]
[1773355218848,2.3586304,2062.0,2060.8,2.75102985]
[1773355219448,2.3586304,2062.0,2060.8,2.99386985]
[1773355222345,0.74583906,2062.6,2061.3,2.63620788]
[1773355222346,11.86386097,2062.4,2061.3,2.63620788]
[1773355222546,2.44086097,2062.3,2061.3,2.63620788]
[1773355222746,2.44086097,2062.3,2061.3,2.37854788]
[1773355226447,2.44086097,2062.1,2061.3,2.37854788]
[1773355231157,2.44086097,2061.9,2061.1,2.37854788]
[1773355231657,2.44086097,2062.3,2061.1,2.37854788]
[1773355231951,2.44086097,2062.3,2061.3,2.37854788]
[1773355235059,2.44086097,2062.3,2061.3,2.62091921]
[1773355235260,2.84140718,2062.6,2061.5,2.37854788]
[1773355242862,2.44086097,2062.4,2061.5,2.37854788]
[1773355260792,2.20464549,2062.2,2061.5,2.37854788]
[1773355263595,2.20464549,2062.2,2061.6,2.34978129]
[1773355265396,2.20464549,2062.0,2061.5,2.34978129]
[1773355270403,2.20464549,2062.1,2061.5,2.34978129]
[1773355270901,2.20464549,2062.3,2061.7,2.34978129]
[1773355271099,2.20464549,2062.2,2061.7,2.34978129]
[1773355272098,2.20464549,2062.4,2062.1,2.34978129]
[1773355272500,2.20464549,2062.4,2061.9,2.34978129]
[1773355275909,2.20464549,2062.4,2061.8,4.44040509]
[1773355276206,2.20464549,2062.4,2061.9,2.34978129]
[1773355277702,4.00991745,2062.6,2061.9,2.34978129]
[1773355278009,2.20464549,2062.9,2062.4,2.34978129]
[1773355278300,2.20464549,2062.9,2062.4,0.022]
[1773355278301,2.18264549,2062.9,2062.4,0.022]
[1773355278899,2.18857001,2062.9,2062.4,0.02654621]
[1773355280710,2.18857001,2062.9,2062.4,2.56415686]
[1773355281412,9.394,2063.3,2062.7,4.62823445]
[1773355281603,9.394,2063.3,2062.7,2.0906238]
[1773355281803,9.372,2063.3,2062.9,0.022]
[1773355282408,0.41831509,2063.2,2062.9,0.022]
[1773355282604,0.46592879,2063.3,2063.0,2.59406296]
[1773355282806,0.24227,2063.5,2063.2,2.57605108]
[1773355282807,9.81431509,2063.5,2063.2,2.57605108]
[1773355283004,9.81431509,2063.5,2063.2,2.21062149]
[1773355283208,0.81976844,2063.4,2063.1,2.55961065]
[1773355283813,1.0679951,2063.4,2063.1,2.55961065]
[1773355284511,0.8241051,2063.4,2063.1,2.55961065]
[1773355285213,0.00433666,2063.4,2063.1,2.55961065]
[1773355285719,0.86416439,2063.4,2063.1,2.55961065]
[1773355286019,0.85931447,2063.2,2062.9,0.022]
[1773355286518,0.85614758,2063.1,2062.9,0.022]
[1773355286815,1.10098758,2063.1,2062.9,0.022]
[1773355287512,0.85614758,2063.1,2062.9,0.022]
[1773355291815,0.85614758,2063.1,2062.6,2.53761065]
[1773355292017,0.85614758,2063.1,2062.5,2.55961065]
[1773355292317,0.85614758,2063.1,2062.0,7.78782663]
[1773355292318,0.72400964,2062.5,2061.7,2.55961065]
[1773355292618,1.07412276,2062.0,2061.6,2.53761065]
[1773355292811,1.46882067,2061.8,2061.4,2.53761065]
[1773355293016,1.46882067,2061.7,2061.4,2.53761065]
[1773355293217,1.47428,2061.7,2061.4,2.54275561]
[1773355294621,1.47428,2061.7,2061.3,0.022]
[1773355295315,1.47428,2061.7,2061.1,0.022]
[1773355295820,1.47428,2061.7,2061.1,0.02639326]
[1773355296216,1.47428,2061.7,2060.9,0.022]
[1773355297021,1.48524118,2061.5,2060.9,2.55961065]
[1773355297524,1.48400157,2061.6,2060.9,2.55961065]
[1773355299113,0.00545933,2061.7,2060.9,2.55961065]
[1773355299626,1.33298912,2061.7,2060.9,2.55961065]
[1773355301621,1.33298912,2061.7,2060.9,0.022]
[1773355301827,1.33298912,2061.7,2060.7,2.55961065]
[1773355302023,1.31988838,2061.4,2060.7,0.022]
[1773355302224,1.31988838,2061.4,2060.7,2.55961065]
[1773355302626,1.31668858,2061.6,2060.7,2.55961065]
[1773355307028,0.00545933,2061.7,2060.7,2.55961065]
[1773355307731,1.35298176,2061.7,2060.7,2.55961065]
[1773355313135,0.00545933,2061.7,2061.0,2.72220831]
[1773355315130,1.36203617,2062.2,2061.0,2.72220831]
[1773355315929,1.36759652,2062.2,2061.0,2.72766764]
[1773355317634,1.36759652,2062.2,2061.0,2.97021764]
[1773355318738,1.61002652,2062.2,2061.0,2.9733002]
[1773355320135,0.00556035,2062.2,2061.0,2.9733002]
[1773355320435,0.308,2062.3,2061.5,2.72220831]
[1773355321234,0.31153735,2062.3,2061.5,2.72220831]
[1773355322242,0.31153735,2062.3,2061.6,2.72220831]
[1773355322447,0.31153735,2062.3,2061.5,6.09366008]
[1773355322448,1.64697192,2062.9,2061.8,2.72220831]
[1773355322744,1.62497192,2062.9,2062.5,0.022]
[1773355322945,1.62497192,2062.9,2062.3,2.74420831]
[1773355323142,1.62497192,2062.9,2062.3,0.022]
[1773355323350,1.62984562,2062.9,2062.3,0.02629597]
[1773355323548,1.6520957,2062.7,2062.3,0.02629597]
[1773355323746,1.7180957,2062.8,2062.3,2.74850428]
[1773355323947,1.27642357,2063.1,2062.3,2.72650428]
[1773355324145,1.25442357,2063.1,2062.9,0.022]
[1773355324444,1.25442357,2063.1,2062.7,2.74420831]
[1773355324445,1.25442357,2063.1,2062.7,0.022]
[1773355324848,1.30370754,2063.1,2062.7,0.022]
[1773355327856,1.54649754,2063.1,2062.7,0.022]
[1773355328556,1.54836754,2063.1,2062.7,0.022]
[1773355329458,1.2576959,2062.7,2062.5,0.022]
[1773355329754,1.2576959,2062.7,2062.3,2.74850428]
[1773355329954,1.5048859,2062.7,2062.3,2.74850428]
[1773355330552,1.2576959,2062.7,2062.3,2.74850428]
[1773355330752,0.088,2062.9,2062.3,2.74850428]
[1773355332057,1.32098564,2062.9,2062.3,2.74850428]
[1773355336965,0.088,2062.9,2062.3,2.74850428]
[1773355338059,1.26454018,2063.1,2062.3,2.74850428]
[1773355338355,1.26454018,2063.1,2062.3,2.72650428]
[1773355338555,1.24254018,2063.1,2062.7,0.022]
[1773355339259,1.28654018,2063.1,2062.7,2.74420831]
[1773355339460,1.21354091,2063.1,2062.7,2.74420831]
[1773355339659,0.05021742,2063.1,2062.7,2.74420831]
[1773355340360,1.1679264,2063.7,2062.7,2.74420831]
[1773355340564,1.1679264,2063.7,2062.7,2.72220831]
[1773355340857,1.1459264,2063.7,2063.3,0.022]
[1773355341260,1.07855062,2063.5,2063.1,0.022]
[1773355341659,1.08440414,2063.5,2063.1,0.022]
[1773355342766,1.08440414,2063.5,2063.1,2.67619536]
[1773355343257,1.08440414,2063.5,2063.1,0.022]
[1773355343766,0.00585352,2063.5,2063.1,2.67619536]
[1773355343967,6.05326797,2064.4,2063.1,2.65419536]
[1773355343968,0.9075553,2063.8,2063.1,2.65419536]
[1773355344159,0.9075553,2064.0,2063.1,2.65419536]
[1773355344359,0.8855553,2064.0,2063.6,0.022]
[1773355344961,0.89107361,2064.0,2063.6,0.022]
[1773355345266,0.89107361,2064.0,2063.6,2.67619536]
[1773355347664,0.89107361,2064.0,2063.6,0.022]
[1773355348056,0.89107361,2064.0,2063.6,2.67619536]
[1773355348261,0.89107361,2064.0,2063.6,0.022]
[1773355348664,0.89107361,2064.0,2063.6,2.67619536]
[1773355351470,0.89107361,2064.0,2063.6,0.022]
[1773355351874,1.13399361,2064.0,2063.6,0.022]
[1773355352873,0.80020551,2063.8,2063.4,0.022]
[1773355353070,1.04798882,2063.6,2063.4,0.022]
[1773355353871,0.79343489,2063.8,2063.4,2.67619536]
[1773355354173,1.03634489,2063.7,2063.4,2.67619536]
[1773355354375,1.03712489,2063.7,2063.4,2.67619536]
[1773355354877,0.79343489,2063.7,2063.4,2.67619536]
[1773355355075,0.7696776,2063.5,2063.2,2.67619536]
[1773355355377,1.0130976,2063.6,2063.2,2.67619536]
[1773355355875,0.7696776,2063.6,2063.2,2.67619536]
[1773355356376,0.7696776,2063.6,2063.2,0.022]
[1773355356979,0.76108077,2063.4,2063.0,2.67619536]
[1773355359376,0.74106371,2063.6,2063.0,2.67619536]
[1773355361780,0.70568352,2063.5,2063.0,2.67619536]
[1773355362080,0.94789634,2063.4,2063.0,2.67619536]
[1773355362779,0.70514634,2063.4,2063.0,2.67619536]
[1773355365181,0.94790634,2063.4,2063.0,2.67619536]
[1773355365478,0.94117528,2063.3,2063.0,2.67619536]
[1773355365682,0.94142528,2063.2,2062.9,2.14572497]
[1773355367871,2.19818152,2063.5,2062.9,2.14572497]
[1773355367872,0.11,2063.5,2062.9,2.14572497]
[1773355372780,1.06600476,2063.7,2062.9,2.14572497]
[1773355373281,1.04400476,2063.7,2063.5,0.022]
[1773355375677,1.04400476,2063.7,2063.3,2.72217999]
[1773355375877,1.08800476,2063.7,2063.3,2.72217999]
[1773355376083,1.08800476,2063.7,2063.3,0.022]
[1773355376584,0.066,2063.6,2063.3,2.70017999]
[1773355377080,1.11470721,2063.6,2063.3,2.70017999]
[1773355383990,0.066,2063.6,2063.3,2.70017999]
[1773355384992,5.01828161,2064.0,2063.3,2.70017999]
[1773355385286,0.98488023,2064.0,2063.3,2.70017999]
[1773355385487,0.96288023,2064.0,2063.8,0.022]
[1773355386291,1.20559023,2064.0,2063.6,2.72217999]
[1773355386591,1.21010868,2064.0,2063.6,2.7258028]
[1773355387993,0.31556,2063.9,2063.5,2.70017999]
[1773355388888,0.31556,2063.9,2063.5,2.70616456]
[1773355391595,1.22120176,2063.9,2063.5,2.70616456]
[1773355393890,4.03340138,2064.2,2063.5,2.70616456]
[1773355394096,0.89210035,2064.6,2064.0,2.70017999]
[1773355394590,2.95009395,2064.3,2064.0,2.72217999]
[1773355394790,0.86291234,2064.3,2064.0,2.72217999]
[1773355395097,1.11111098,2064.3,2064.0,2.72217999]
[1773355395296,0.84063855,2064.1,2063.7,2.70017999]
[1773355395797,1.08703855,2064.1,2063.7,2.70017999]